[Event "Bangabandhu Premier Div League 2022"]
[Site "Dhaka"]
[Date "2022.12.03"]
[Round "4.5"]
[White "Aradhya, Garg"]
[Black "Abu Sufian, Shakil"]
[Result "1/2-1/2"]
[ECO "D11"]
[WhiteElo "2289"]
[BlackElo "2229"]
[Annotator "TA"]
[PlyCount "105"]
[EventDate "2022.11.30"]
[EventType "team-tourn"]
[EventCountry "BAN"]
[SourceTitle "playchess.com"]
[Source "ChessBase"]
[SourceQuality "1"]
[TimeControl "40/5400+30:1800+30"]

{[%evp 11,105,12,18,7,13,16,19,14,20,12,19,14,17,14,20,0,14,14,22,16,24,9,22,18,24,31,20,27,43,43,32,43,34,16,43,37,42,0,0,0,0,0,0,0,0,-6,0,0,0,0,33,-20,7,0,22,16,9,29,40,24,120,112,159,124,83,75,68,0,0,-16,-16,-25,-20,-24,-27,-14,-11,-34,0,0,0,0,0,0,0,0,0,0,0,0,0,0,0,0,0,0]} 1. d4 {[%emt 0:00:02]} d5 {[%emt 0:00:05]} 2. c4 {[%emt 0:00:04]} c6 {[%emt 0:00:04]} 3. Nf3 {[%emt 0:00:04]} Nf6 {[%emt 0:00:05]} 4. g3 {[%emt 0:00:03]} Bg4 {[%emt 0:02:26][%cal Bc8g4,Bg4h5,Bh5g6][%mdl 32]} 5. Bg2 {[%emt 0:00:28]} e6 {[%emt 0:00:16]} 6. O-O {[%emt 0:04:23]} Nbd7 {[%emt 0:01:12]} 7. h3 {[%emt 0:00:46] D11: Slav Defence: 3 Nf3 sidelines and 3...Nf6 4 e3 Bg4.} Bh5 {[%emt 0:00:15]} 8. cxd5 {[%emt 0:01:00]} exd5 {[%emt 0:01:11]} 9. Qb3 {[%emt 0:00:09] 9.Ne5 is the fancy move.} Qb6 {[%emt 0:07:21]} 10. Qe3+ {[%emt 0:00:02]} Be7 {[%emt 0:00:06]} 11. Nh4 {[%emt 0:00:57] [#] Black must now prevent Nf5.} Bg6 {[%emt 0:00:40] Against Nf5} (11... Kf8 {is more complex.} 12. Nf5 Bd8 13. Nc3 h6) 12. Nc3 {[%emt 0:01:10][%cal Ob2b4]} Qd8 {[%emt 0:01:35]} 13. b4 {[%emt 0:05:59]} a6 {[%emt 0:06:01]} 14. a4 {[%emt 0:01:55][%cal Ba2a4,Ba4a5][%mdl 32]} O-O {[%emt 0:00:21]} 15. Nxg6 {[%emt 0:00:05]} hxg6 {[%emt 0:00:06]} 16. Rb1 {[%emt 0:00:06]} Nb6 {[%emt 0:14:53]} 17. Qd3 {[%emt 0:03:19] [#]} Qd7 $146 {[%emt 0:02:11]} ({Predecessor:} 17... a5 18. b5 Bb4 19. Na2 Bd6 20. Bg5 Qc7 21. Rfc1 Rad8 22. bxc6 bxc6 23. Qc3 Nc4 {0-1 (57) Praggnanandhaa,R (2530)-Karjakin,S (2753) Kolkata 2018}) 18. a5 {[%emt 0:02:39]} Nc8 {[%emt 0:00:31]} 19. Na4 {[%emt 0:01:06]} Qf5 {[%emt 0:03:15]} 20. Nc5 {[%emt 0:02:43]} Nd6 {[%emt 0:03:32]} 21. Bf4 {[%emt 0:05:45]} Nfe4 {[%emt 0:01:38]} 22. e3 {[%emt 0:08:13]} Rfe8 {[%emt 0:06:39]} 23. g4 {[%emt 0:01:26]} Qc8 {[%emt 0:01:59]} 24. Nxe4 {[%emt 0:02:44]} Nxe4 {[%emt 0:00:47]} 25. f3 {[%emt 0:04:12]} Nd6 {[%emt 0:00:27]} 26. e4 {[%emt 0:00:06]} dxe4 {[%emt 0:06:10]} 27. fxe4 {[%emt 0:06:27]} Nb5 {[%emt 0:01:08]} 28. Be3 {[%emt 0:03:23]} Qd7 {[%emt 0:01:15]} 29. Qc4 {[%emt 0:05:10]} Bf6 {[%emt 0:08:36][%cal Rf6d4]} 30. e5 {[%emt 0:12:34]} Nc7 {[%emt 0:07:13]} (30... Na3 31. Qc1 Nxb1 32. exf6 $16) 31. Bd2 {[%emt 0:11:52]} (31. Be4 $14) 31... Bd8 {[%emt 0:00:44]} (31... Bh4 {is interesting.} 32. Be4 Rad8 33. Be3 Qe6) 32. Rb3 {[%emt 0:01:00]} Qe6 {[%emt 0:02:37]} 33. Qxe6 {[%emt 0:00:13]} Rxe6 {[%emt 0:01:49]} 34. Rbf3 {[%emt 0:01:42]} f6 {[%emt 0:02:55]} 35. g5 {[%emt 0:00:16][%cal Rg5f6]} (35. Rd3 {simplifies} Nd5 36. Be4 fxe5 37. dxe5 Rxe5 38. Bxg6 Bf6 39. h4) 35... Nd5 {[%emt 0:11:08]} (35... f5 $11 {keeps the balance.}) 36. h4 {[%emt 0:02:13]} Kf7 {[%emt 0:00:10]} (36... Bc7 $142) 37. Bh3 {[%emt 0:01:14]} Re8 {[%emt 0:00:06] Inhibits h5.} 38. gxf6 {[%emt 0:01:17]} gxf6 {[%emt 0:00:05][%cal Bg7f6,Bf6f5][%mdl 32]} 39. Bg5 {[%emt 0:00:26] White is more active.} (39. h5 $14) 39... f5 $1 $11 {[%emt 0:01:56] [#] And now ...Rh8 would win.} (39... Nxb4 $2 40. Bxf6 (40. exf6 Bxa5 41. Bd2 Re2 $11) 40... Bxf6 41. Rxf6+ Kg7 42. Rf7+ Kh6 43. Rxb7 $18) 40. Rg3 {[%emt 0:00:44][%cal Oh4h5]} Rh8 {[%emt 0:01:56] Prevents h5. Hoping for ...Bxg5.} ({But not} 40... Nxb4 41. h5 (41. Bxf5 $2 gxf5 42. Rxf5+ Ke6 $19) 41... Bxg5 42. hxg6+ (42. Rxg5 Rg8 $16) 42... Kg7 43. Rxg5 $16) 41. e6+ $1 {[%emt 0:30:34]} Kxe6 {[%emt 0:33:29] aiming for ...Bxg5.} 42. Bxd8 {[%emt 0:00:12]} Raxd8 {[%emt 0:00:04]} 43. Rxg6+ {[%emt 0:00:06]} Kf7 {[%emt 0:00:09]} 44. Bxf5 {[%emt 0:01:14]} Ne3 {[%emt 0:00:39]} ({Don't take} 44... Nxb4 45. Rg4 $16) (44... Rxh4 $5 {[%cal Rd5e3]} 45. Rf3 Rxd4 46. Be4+ Ke8 47. Rg8+ Kd7 48. Bxd5 Rxd5 $17) 45. Rf4 {[%emt 0:00:11] Strongly threatening Bc2+. The position is equal.} Nxf5 {[%emt 0:00:00]} 46. Rg5 {[%emt 0:00:00]} Rxh4 {[%emt 0:00:00]} 47. Rgxf5+ {[%emt 0:00:00][%mdl 4096] Endgame KRR-KRR} Kg6 {[%emt 0:00:00]} 48. Rf6+ {[%emt 0:00:00]} Kg5 {[%emt 0:00:00]} 49. R6f5+ {[%emt 0:00:00]} Kg6 {[%emt 0:00:00]} 50. Rxh4 {[%emt 0:00:00]} Kxf5 {[%emt 0:00:00]} 51. Kf2 {[%emt 0:00:00]} Rd5 {[%emt 0:00:00]} 52. Ke3 {[%emt 0:00:00]} Kg5 {[%emt 0:00:00]} 53. Rh2 {Weighted Error Value: White=0.09 (flawless) /Black=0.11 (very precise)} 1/2-1/2

[Event "Bangabandhu Premier Div League 2022"]
[Site "Dhaka"]
[Date "2022.12.03"]
[Round "4.6"]
[White "Ghosh, Diptayan"]
[Black "Sankalan Shah"]
[Result "1-0"]
[ECO "E06"]
[WhiteElo "2544"]
[BlackElo "2218"]
[Annotator "TA"]
[PlyCount "53"]
[EventDate "2022.11.30"]
[EventType "team-tourn"]
[EventCountry "BAN"]
[SourceTitle "playchess.com"]
[Source "ChessBase"]
[SourceQuality "1"]
[TimeControl "40/5400+30:1800+30"]

{[%evp 11,53,-8,11,-2,15,-8,26,33,21,25,50,36,64,37,102,82,107,100,105,106,101,110,133,144,156,157,155,164,162,175,150,144,327,327,402,399,372,368,385,320,426,430,428,422]} 1. d4 {[%emt 0:00:26]} Nf6 {[%emt 0:00:34]} 2. Nf3 {[%emt 0:00:55]} e6 {[%emt 0:00:14]} 3. c4 {[%emt 0:00:56]} d5 {[%emt 0:00:12]} 4. g3 {[%emt 0:00:11]} Be7 {[%emt 0:00:05]} 5. Bg2 {[%emt 0:00:04]} O-O {[%emt 0:00:05]} 6. Nbd2 {[%emt 0:00:39]} c5 {[%emt 0:03:51]} 7. cxd5 {[%emt 0:00:23] E06: Closed Catalan: Early deviations.} Nxd5 {[%emt 0:00:17]} 8. O-O {[%emt 0:05:12]} Nc6 {[%emt 0:00:44]} 9. dxc5 {[%emt 0:02:55] White has an edge.} Bxc5 {[%emt 0:00:42]} 10. a3 {[%emt 0:04:13]} a5 {[%emt 0:13:37] Prevents b4.} 11. Qc2 {[%emt 0:11:18]} Be7 {[%emt 0:01:27]} 12. e4 {[%emt 0:04:43]} Nf6 {[%emt 0:03:57]} ({Better is} 12... Nb6 $14) 13. Rd1 $36 {[%emt 0:02:12][%mdl 2048] Keeping Black busy.} Bd7 {[%emt 0:09:13]} 14. Nc4 {[%emt 0:01:14] [#]} Rc8 $146 {[%emt 0:21:40]} ({Predecessor:} 14... b5 15. Nce5 Qc8 16. Nxd7 Nxd7 17. Be3 Nce5 18. Rac1 Qxc2 19. Rxc2 Rac8 20. Rdc1 Rxc2 21. Rxc2 {1-0 (47) Januario,S (2207)-Gazola,V (2015) Brasilia 2018}) 15. Qe2 {[%emt 0:02:36] White has more active pieces.} b5 {[%emt 0:04:24] [#]} 16. Nce5 {[%emt 0:06:07]} Nxe5 {[%emt 0:02:06]} 17. Nxe5 {[%emt 0:00:18]} Qc7 {[%emt 0:06:11]} 18. Bf4 {[%emt 0:10:12] And now Nxd7 would win.} Qb7 {[%emt 0:01:23]} 19. Nxd7 {[%emt 0:02:12]} Nxd7 {[%emt 0:00:02]} 20. e5 {[%emt 0:00:07]} Qa7 {[%emt 0:00:52]} 21. Qxb5 {[%emt 0:00:31]} Nc5 {[%emt 0:02:06] [#]} (21... Rfd8 $16 22. Rac1 Rxc1 23. Bxc1 (23. Rxc1 Bc5 $16) 23... Qc5 24. Qxc5 Nxc5 25. Rxd8+ Bxd8) 22. b4 $18 {[%emt 0:09:21]} Rb8 {[%emt 0:05:04]} 23. Qc4 {[%emt 0:05:34]} (23. Qxa5 Qxa5 24. bxa5 Nb3 $18) 23... Na4 {[%emt 0:05:49]} 24. Be3 {[%emt 0:01:02] This pair of bishops is nice.} Nb6 {[%emt 0:00:14]} 25. Qb5 {[%emt 0:01:33]} Nd5 {[%emt 0:02:35]} 26. Qxd5 {[%emt 0:01:39]} (26. Qxa5 Qxa5 27. bxa5 Nxe3 28. fxe3 Rb5 $16) 26... Qxe3 {[%emt 0:01:48]} 27. Qd7 {[%emt 0:00:40] Black got outplayed after the opening.   Weighted Error Value: White=0.09 (flawless) /Black=0.34} ({Less strong is} 27. Qxa5 Qc3 28. Rac1 Qb3 $18) ({Weaker is} 27. fxe3 exd5 28. bxa5 Rb5 29. Rxd5 (29. Bxd5 Rxa5 30. a4 Bc5 $18) 29... Bc5 $18) 1-0

[Event "Bangabandhu Premier Div League 2022"]
[Site "Dhaka"]
[Date "2022.12.03"]
[Round "4.6"]
[White "Rahman, Siddiqur"]
[Black "Chanda, Sandipan"]
[Result "0-1"]
[ECO "A85"]
[WhiteElo "1970"]
[BlackElo "2474"]
[Annotator "TA"]
[PlyCount "80"]
[EventDate "2022.12.01"]
[EventCountry "BAN"]
[SourceTitle "playchess.com"]
[Source "ChessBase"]
[SourceQuality "1"]
[TimeControl "40/5400+30:1800+30"]

{[%evp 9,80,7,28,21,31,25,34,19,68,3,18,0,0,0,0,0,-2,-25,0,-63,-60,-56,-18,-88,-42,-46,-33,-48,-48,-49,-48,-122,-132,-136,-124,-113,-123,-397,-409,-556,-553,-718,-722,-727,-716,-662,-508,-671,-662,-964,-966,-930,-861,-860,-810,-813,-800,-800,-800,-795,-768,-754,-765,-754,-755,-729,-735,-812,-803,-1116,-1089,-29980,-29981]} 1. d4 {[%emt 0:00:04]} f5 {[%emt 1:31:00]} 2. c4 {[%emt 1:31:26]} Nf6 {[%emt 0:00:00][%cal Bg8f6,Bf6e4,Be4d2][%mdl 32]} 3. Nc3 {[%emt 0:00:00]} e6 {[%emt 0:00:00]} 4. Nf3 {[%emt 0:00:00]} Bb4 {[%emt 0:01:30]} 5. Qc2 {[%emt 0:00:00]} c5 {[%emt 0:00:30]} 6. dxc5 {[%emt 0:00:00] [#] A85: Dutch Defence: 2 c4 Nf6 3 Nc3.} Ne4 $146 {[%emt 0:00:00]} ({Predecessor:} 6... Na6 7. c6 bxc6 8. Bg5 O-O 9. e3 Qa5 10. Bxf6 Rxf6 11. Bd3 Nc5 12. O-O Bxc3 13. bxc3 {1-0 (31) Gnechko,R (2132)-Eggleston,T (2203) Chess.com INT 2022}) 7. Bd2 {[%emt 0:00:00]} (7. g4 {keeps more tension.} Na6 8. gxf5 Bxc3+ 9. bxc3 exf5 10. Nd2) 7... Nxd2 {[%emt 0:01:00]} 8. Qxd2 {[%emt 0:00:00] White is slightly better.} O-O {[%emt 0:00:30]} (8... Qf6 $11 {deserves consideration.}) 9. Nd4 {[%emt 0:00:00]} (9. a3 $1 $14 Bxc5 10. e4) 9... Na6 {[%emt 0:00:00][%cal Bb8a6,Ba6c5,Bc5e4][%mdl 32]} 10. a3 {[%emt 0:00:00]} Bxc3 {[%emt 0:00:00]} 11. Qxc3 {[%emt 0:00:00]} Nxc5 {[%emt 0:00:00]} 12. g3 {[%emt 0:05:00]} Ne4 {[%emt 0:02:00]} 13. Qc2 {[%emt 0:00:30]} b5 {[%emt 0:00:30]} 14. Bg2 {[%emt 0:00:00]} (14. Nxb5 $11 Qb6 15. e3) 14... bxc4 $15 {[%emt 0:00:00]} 15. Qxc4 {[%emt 0:00:00]} Bb7 {[%emt 0:01:00] Strongly threatening ...Nd6.} 16. f3 {[%emt 0:00:00]} (16. O-O $11) 16... Bd5 {[%emt 0:00:00]} (16... Nf6 $17 {White must now prevent ...Nd5.} 17. O-O Nd5) 17. Qd3 {[%emt 0:00:00]} Nc5 {[%emt 0:00:00]} 18. Qe3 {[%emt 0:00:00]} Qb6 {[%emt 0:00:00]} 19. O-O {[%emt 0:00:00]} Rac8 {[%emt 0:00:00]} (19... Qxb2 $2 20. Rfb1 $18) 20. Qf2 {[%emt 0:00:00]} (20. Rfd1 $15) 20... Qxb2 $17 {[%emt 0:00:00]} 21. Rfb1 {[%emt 0:00:15] Inhibits e5.} Qd2 {[%emt 0:00:00] Black is much more active.} 22. Rd1 {[%emt 0:01:45]} Qa5 {[%emt 0:00:00]} 23. Rdb1 $2 {[%emt 0:00:44][%mdl 8192] [#] Now White is beyond hope.} (23. Qe1 $17 {is a better defense.} Qa6 24. Qb4) 23... e5 $1 $19 {[%emt 0:00:00]} 24. Nb5 {[%emt 0:01:21]} Nb3 {[%emt 0:00:00][%cal Ob3a1]} 25. Rxb3 {[%emt 0:01:05]} Bxb3 {[%emt 0:00:00]} 26. a4 {[%emt 0:00:25]} a6 {[%emt 0:00:00][%cal Ba7a6,Ba6b5,Bb5a4][%mdl 32]} 27. Qe3 {[%emt 0:01:25]} Qb4 {[%emt 0:00:00]} 28. Rb1 {[%emt 0:00:30]} axb5 {[%emt 0:00:00]} 29. Rxb3 {[%emt 0:00:00]} Qe1+ {[%emt 0:00:00]} 30. Bf1 {[%emt 0:00:00]} Rc1 {[%emt 0:00:00][%csl Gc1][%cal Re1f1,Bc8c1,Bc1e1,Be1b1,Bb1b2][%mdl 32]} 31. Qf2 {[%emt 0:00:00]} bxa4 {[%emt 0:00:00]} 32. Qxe1 {[%emt 0:00:51]} Rxe1 {[%emt 0:00:00][%mdl 4096] Endgame KRR-KRB} 33. Ra3 {[%emt 0:00:14]} Ra8 {[%emt 0:00:00]} 34. Kf2 {[%emt 0:00:23]} Rb1 {[%emt 0:00:00] Threatens to win with ...Rb3.} 35. e4 {[%emt 0:00:38]} fxe4 {[%emt 0:00:00]} 36. Bc4+ {[%emt 0:00:13]} Kf8 {[%emt 0:00:00]} 37. fxe4 {[%emt 0:00:05]} Ke7 {[%emt 0:00:00]} 38. Bd5 {[%emt 0:00:08]} Ra5 {[%emt 0:00:00] And now ...Rb2+ would win.} 39. g4 {[%emt 0:02:58]} Rb2+ {[%emt 0:00:00]} 40. Kg3 {[%emt 0:00:00] [#]} Rxd5 $1 {[%emt 0:00:00] Weighted Error Value: White=0.59/Black=0.20 (precise)} 0-1

[Event "Bangabandhu Premier Div League 2022"]
[Site "Dhaka"]
[Date "2022.12.03"]
[Round "4.7"]
[White "Harsha Bharathakoti"]
[Black "Nayan Kumar, Mohanto"]
[Result "1-0"]
[ECO "A11"]
[WhiteElo "2582"]
[BlackElo "1976"]
[Annotator "TA"]
[PlyCount "39"]
[EventDate "2022.12.01"]
[EventCountry "BAN"]
[SourceTitle "playchess.com"]
[Source "ChessBase"]
[SourceQuality "1"]
[TimeControl "40/5400+30:1800+30"]

{[%evp 14,39,39,33,56,56,69,78,105,61,84,41,73,27,30,11,89,93,87,92,341,268,328,329,320,320,296,300]} 1. Nf3 {[%emt 1:31:00]} Nf6 {[%emt 0:36:25]} 2. g3 {[%emt 0:00:30]} g6 {[%emt 0:00:39]} 3. b3 {[%emt 0:00:30]} Bg7 {[%emt 0:00:11]} 4. Bb2 {[%emt 0:00:30]} d5 {[%emt 0:00:41]} 5. c4 {[%emt 0:00:30]} c6 {[%emt 0:55:04]} 6. Bg2 {[%emt 0:00:30]} O-O {[%emt 0:00:00]} 7. O-O {[%emt 0:00:00]} dxc4 8. bxc4 {[%emt 0:01:00]} Qb6 {[%emt 0:01:30] A11: English Opening: 1...c6.} 9. Qc1 {[%emt 0:00:30]} Bf5 {[%emt 0:00:30]} 10. d3 {[%emt 0:00:30] [#]} Na6 $146 {[%emt 0:00:30] White is better.} ({Predecessor:} 10... Re8 11. h3 Nbd7 12. g4 Be6 13. Nc3 Nf8 14. a4 a5 15. Rb1 Qc7 16. Qc2 h6 {1-0 (61) Werner,P (1589)-Duschek,G (1632) Dortmund 2005}) 11. Nc3 {[%emt 0:00:30]} Qa5 {[%emt 0:00:30]} 12. Rb1 {[%emt 0:00:30]} Rfe8 {[%emt 0:00:30]} 13. Ba1 {[%emt 0:00:30]} ({White should play} 13. Nd1 $16) 13... Rab8 $11 {[%emt 0:00:30]} 14. Nd2 {[%emt 0:00:30]} Nc5 {[%emt 0:00:30] [#]} (14... e5 $11 {keeps the balance.}) 15. e4 $1 $16 {[%emt 0:00:30][%cal Be2e4,Be4e5][%mdl 32]} Bg4 {[%emt 0:00:30]} ({Weaker is} 15... Nxd3 16. Qc2 $16) 16. d4 {[%emt 0:00:00]} Na4 {[%emt 0:00:30] This costs Black the game.} (16... Ne6 $16 {was called for.}) 17. h3 {[%emt 0:00:00] White has a decisive advantage.} Bd7 18. e5 {[%emt 0:01:30]} Nh5 {[%emt 0:01:00]} 19. Nb3 {[%emt 0:00:30]} Nxc3 {[%emt 0:00:00]} 20. Bxc3 {[%emt 0:00:30][%mdl 64] Weighted Error Value: White=0.20 (precise) /Black=0.44} 1-0

[Event "Bangabandhu Premier Div League 2022"]
[Site "Dhaka"]
[Date "2022.12.03"]
[Round "4.7"]
[White "Jamal Uddin"]
[Black "Mitrabha, Guha"]
[Result "0-1"]
[ECO "A37"]
[WhiteElo "2092"]
[BlackElo "2474"]
[Annotator "TA"]
[PlyCount "58"]
[EventDate "2022.11.30"]
[EventType "team-tourn"]
[EventCountry "BAN"]
[SourceTitle "playchess.com"]
[Source "ChessBase"]
[SourceQuality "1"]
[TimeControl "40/5400+30:1800+30"]

{[%evp 16,58,0,0,0,-22,20,22,14,11,68,41,41,-108,-113,-137,-109,-107,-93,-102,-98,-97,-92,-95,-102,-166,-152,-445,-447,-463,-461,-463,-441,-450,-450,-510,-506,-589,-582,-634,-624,-759,-759,-1829,-1242]} 1. c4 {[%emt 0:01:22]} c5 {[%emt 0:00:18]} 2. Nf3 {[%emt 0:00:31]} g6 {[%emt 0:00:19]} 3. g3 {[%emt 0:00:41]} Bg7 {[%emt 0:00:09]} 4. Bg2 {[%emt 0:00:18]} Nc6 {[%emt 0:00:06]} 5. O-O {[%emt 0:00:44]} e6 {[%emt 0:00:17]} 6. d3 {[%emt 0:02:01]} Nge7 {[%emt 0:00:22]} 7. Nc3 {[%emt 0:00:41][%cal Bb1c3,Bc3b5,Bb5c7,Bc7d5,Bd5b4][%mdl 32]} d5 {[%emt 0:00:23]} 8. cxd5 {[%emt 0:01:51]} exd5 {[%emt 0:00:11]} 9. Bf4 {[%emt 0:00:46]} O-O {[%emt 0:00:31] A37: Symmetrical English vs ...g6: 4 Bg2 Bg7 5 Nf3.} 10. Qd2 {[%emt 0:01:12][%cal Od3d4]} (10. e4 $5 {[%cal Re4d5]}) 10... b6 {[%emt 0:04:14]} 11. d4 $1 {[%emt 0:06:27]} cxd4 {[%emt 0:07:42] The position is equal.} 12. Nb5 {[%emt 0:00:53]} Nf5 {[%emt 0:02:31]} ({Black should play} 12... d3 $11) 13. Nc7 {[%emt 0:01:44]} Rb8 {[%emt 0:00:05] [#]} 14. g4 $146 {[%emt 0:00:36] [#]} (14. Rfc1 $14 {keeps the upper hand.} Bb7 15. Nb5) ({Predecessor:} 14. Nxd5 Qxd5 15. e4 Qxe4 16. Rfe1 Qd5 17. g4 Bb7 18. Bxb8 Rxb8 19. gxf5 Ne5 20. Rxe5 Bxe5 {0-1 (40) Sigfusson,S (2370)-Lerner,K (2560) Copenhagen 1990}) 14... Nd6 $1 $17 {[%emt 0:00:43]} 15. Nxd5 {[%emt 0:01:18]} Bxg4 {[%emt 0:01:09] White must now prevent ...Ne4.} 16. Nb4 {[%emt 0:02:18]} Bxf3 {[%emt 0:14:18]} ({Reject} 16... Nxb4 $6 17. Qxb4 Nf5 18. Bxb8 Bxf3 19. Bxf3 $11 (19. Bxa7 {leads to mate.} Qg5)) 17. Bxf3 {[%emt 0:01:35]} Ne5 {[%emt 0:04:59]} 18. Bxe5 {[%emt 0:01:01]} Nc4 {[%emt 1:01:13]} 19. Qxd4 {[%emt 0:01:36]} Nxe5 {[%emt 0:00:00]} 20. Qe4 {[%emt 0:01:35]} (20. Qxd8 $17 {was called for.} Nxf3+ 21. Kg2 Rbxd8 22. Kxf3) 20... Rc8 $36 {[%emt 0:00:00][%cal Bb8c8,Bc8c4,Bc4e4][%mdl 2080] White is under strong pressure.} 21. Bg2 $2 {[%emt 0:00:47] [#] Now White is beyond hope.} (21. Nd3 $17 Rc4 22. Qe3) 21... Rc4 {[%emt 0:00:00] Black is clearly winning.} 22. Rad1 {[%emt 0:03:29]} Rxe4 {[%emt 0:00:00]} 23. Rxd8 {[%emt 0:05:05]} Rxb4 {[%emt 0:00:00]} 24. Rxf8+ {[%emt 0:00:50]} Bxf8 {[%emt 0:00:00]} 25. b3 {[%emt 0:00:22]} Rd4 {[%emt 0:00:00] Inhibits Rd1.} 26. a4 {[%emt 0:05:03]} Rd2 {[%emt 0:00:00]} 27. e3 {[%emt 0:00:34]} Bc5 {[%emt 0:00:00]} 28. Be4 {[%emt 0:00:52]} Ng4 {[%emt 0:00:00][%cal Og4f2]} 29. Kg2 {[%emt 0:00:37]} Nxe3+ {[%emt 0:00:00] Weighted Error Value: White=0.68/Black=0.09 (flawless)} 0-1

[Event "Bangabandhu Premier Div League 2022"]
[Site "Dhaka"]
[Date "2022.12.03"]
[Round "4.8"]
[White "Chatterjee, Debaraj"]
[Black "Hossain, Showkat Pollab"]
[Result "1-0"]
[ECO "E00"]
[WhiteElo "2196"]
[BlackElo "1989"]
[Annotator "TA"]
[PlyCount "77"]
[EventDate "2022.11.30"]
[EventType "team-tourn"]
[EventCountry "BAN"]
[SourceTitle "playchess.com"]
[Source "ChessBase"]
[SourceQuality "1"]
[TimeControl "40/5400+30:1800+30"]

{[%evp 11,77,-24,40,29,34,34,41,33,47,35,39,34,38,43,41,14,44,32,64,12,99,102,100,85,104,102,121,114,124,127,127,87,157,116,187,184,298,269,270,276,259,79,168,154,170,157,356,310,366,384,482,486,481,462,606,591,953,929,1064,1101,1529,1496,1881,1832,1862,1880,29986,29986]} 1. d4 {[%emt 0:02:03]} Nf6 {[%emt 0:00:08]} 2. c4 {[%emt 0:00:13]} e6 {[%emt 0:00:06]} 3. g3 {[%emt 0:00:09]} d5 {[%emt 0:00:06]} 4. Bg2 {[%emt 0:00:08]} Bb4+ {[%emt 0:00:10]} 5. Nd2 {[%emt 0:00:48]} O-O {[%emt 0:03:50]} 6. Qc2 {[%emt 0:07:21]} c6 {[%emt 0:04:54]} ({Black should play} 6... c5 $11) 7. a3 {[%emt 0:04:38] E00: Catalan Bogo-Indian (3 g3 Bb4+).} Bd6 {[%emt 0:01:50]} 8. Ngf3 {[%emt 0:01:03]} Nbd7 {[%emt 0:01:41]} 9. O-O {[%emt 0:00:11] White is slightly better.} b6 {[%emt 0:07:27]} 10. e4 {[%emt 0:01:02] [#]} dxe4 $146 {[%emt 0:01:53]} ({Predecessor:} 10... Be7 11. e5 Ne8 12. b4 Ba6 13. Re1 dxc4 14. Nxc4 Rc8 15. Rb1 Nc7 16. Nd6 Bxd6 17. exd6 {0-1 (35) Zong,D (2129)-Djordjevic,V (2350) Chess.com INT 2021}) 11. Nxe4 {[%emt 0:00:06]} Nxe4 {[%emt 0:03:03]} 12. Qxe4 {[%emt 0:00:08]} Bb7 {[%emt 0:01:18]} 13. Ne5 {[%emt 0:10:56]} Rc8 {[%emt 0:06:22]} (13... f5 {simplifies} 14. Qe2 Nxe5 15. dxe5 Be7) 14. b4 {[%emt 0:09:06]} Ba8 {[%emt 0:01:44]} 15. Qe2 {[%emt 0:15:35] White is much more active.} (15. Nxd7 $1 $14 Qxd7 16. Qg4) 15... Qc7 {[%emt 0:06:34] [#]} (15... Nxe5 $11 16. dxe5 Be7) 16. Nxd7 $1 $16 {[%emt 0:01:07]} Qxd7 {[%emt 0:00:10]} 17. c5 {[%emt 0:00:09]} Be7 {[%emt 0:00:42]} 18. Rd1 {[%emt 0:08:16]} Bb7 {[%emt 0:06:01]} 19. Bf4 {[%emt 0:01:00][%cal Bc1f4,Bf4e3,Be3g5,Bg5h4][%mdl 32]} Rfe8 {[%emt 0:04:02]} 20. h4 {[%emt 0:01:49][%cal Bh2h4,Bh4h5,Bh5h6][%mdl 32]} Ra8 {[%emt 0:04:43]} 21. Rac1 {[%emt 0:00:42][%cal Ob4b5]} Rec8 {[%emt 0:03:54] Prevents b5.} (21... b5 $142) 22. h5 {[%emt 0:04:49]} a5 {[%emt 0:05:08]} (22... b5 $16) 23. h6 $18 {[%emt 0:11:01] aiming for hxg7.} g5 {[%emt 0:03:02]} (23... b5 $142 24. hxg7 Bf6) 24. Be3 {[%emt 0:02:03]} (24. Qe5 f6 25. Qe2 Bf8 $16) 24... axb4 {[%emt 0:03:11]} 25. axb4 {[%emt 0:00:11]} ({Not} 25. cxb6 bxa3 26. Qd2 Qd8 $15) 25... b5 {[%emt 0:08:30]} 26. d5 $2 $40 {[%emt 0:11:37][%mdl 128] White is out for blood.} (26. Qb2 $18 {[%cal Od4d5] has better winning chances. Threatens to win with d5!} Bf6 {[#]} 27. Bxg5 $1 {[%mdl 512]}) 26... cxd5 {[%emt 0:02:15]} (26... exd5 $16 27. Qb2 Bf8) 27. Qb2 {[%emt 0:02:00][%csl Gh6][%cal Rb2g7]} f6 {[%emt 0:02:56]} 28. Bxg5 $1 {[%emt 0:00:17][%mdl 64]} Qd8 $2 {[%emt 0:04:37] Black cannot hold the game after this.} (28... e5 $16 {might work better.}) 29. Bh4 {[%emt 0:01:21]} Qf8 {[%emt 0:01:28]} 30. Qe2 {[%emt 0:01:29][%csl LRb5,LRe6] Black must now prevent c6.} Qf7 {[%emt 0:03:07]} 31. Bh3 {[%emt 0:01:20]} ({Less strong is} 31. Qxb5 Bf8 $18) 31... Ra6 {[%emt 0:04:55]} 32. Qxb5 {[%emt 0:00:17]} Rc7 {[%emt 0:02:59]} 33. Qe2 {[%emt 0:00:52] Against Qh5. Strongly threatening b5.} e5 {[%emt 0:00:59]} 34. b5 {[%emt 0:00:31]} Ra4 {[%emt 0:01:35]} 35. c6 {[%emt 0:00:22]} Ba8 {[%emt 0:00:50]} 36. Ra1 {[%emt 0:01:09]} Ba3 {[%emt 0:01:19]} 37. Qd3 {[%emt 0:01:13]} e4 {[%emt 0:00:55]} 38. Qb3 {[%emt 0:00:45][%cal Oa1a3]} Ra5 {[%emt 0:00:34]} 39. Rxa3 {[%emt 0:00:18] Weighted Error Value: White=0.17 (very precise) /Black=0.67} 1-0